[Event "Titled Tuesday Blitz November 14 Early 2023"]
[White "Xu, Yi"]
[Black "Makhnev, Denis"]
[WhiteFideId "8605564"]
[BlackFideId "13707647"]
[WhiteElo "2815"]
[BlackElo "2656"]
[Result "1-0"]
[Round "7"]
[TimeControl "180+1"]
[Date "2023.11.14"]
[WhiteClock "0:01:36"]
[BlackClock "0:00:12"]
[Board "42"]

1. e4 {[%clk 0:02:36]}  c6 {[%clk 0:02:37]} 2. d4 {[%clk 0:02:36]}  d5 {[%clk 0:02:38]} 3. e5 {[%clk 0:02:35]}  Bf5 {[%clk 0:02:37]} 4. Ne2 {[%clk 0:02:35]}  e6 {[%clk 0:02:36]} 5. Ng3 {[%clk 0:02:34]}  Bg6 {[%clk 0:02:36]} 6. h4 {[%clk 0:02:34]}  h6 {[%clk 0:02:36]} 7. h5 {[%clk 0:02:32]}  Bh7 {[%clk 0:02:36]} 8. Bd3 {[%clk 0:02:32]}  Bxd3 {[%clk 0:02:36]} 9. Qxd3 {[%clk 0:02:32]}  Qa5+ {[%clk 0:02:34]} 10. c3 {[%clk 0:02:30]}  Qa6 {[%clk 0:02:32]} 11. Qxa6 {[%clk 0:02:29]}  Nxa6 {[%clk 0:02:32]} 12. Be3 {[%clk 0:02:27]}  c5 {[%clk 0:02:21]} 13. f4 {[%clk 0:02:23]}  cxd4 {[%clk 0:02:18]} 14. cxd4 {[%clk 0:02:21]}  Bb4+ {[%clk 0:02:14]} 15. Ke2 {[%clk 0:02:18]}  Ne7 {[%clk 0:02:13]} 16. a3 {[%clk 0:02:16]}  Ba5 {[%clk 0:02:13]} 17. b4 {[%clk 0:02:11]}  Bb6 {[%clk 0:02:04]} 18. Kd3 {[%clk 0:02:10]}  Rc8 {[%clk 0:01:45]} 19. Nd2 {[%clk 0:02:08]}  Nb8 {[%clk 0:01:32]} 20. Ne2 {[%clk 0:02:01]}  Nd7 {[%clk 0:01:28]} 21. g4 {[%clk 0:02:00]}  O-O {[%clk 0:01:24]} 22. Rac1 {[%clk 0:01:56]}  a5 {[%clk 0:01:15]} 23. b5 {[%clk 0:01:52]}  Rxc1 {[%clk 0:01:05]} 24. Rxc1 {[%clk 0:01:52]}  Rc8 {[%clk 0:01:06]} 25. Rxc8+ {[%clk 0:01:42]}  Nxc8 {[%clk 0:01:07]} 26. a4 {[%clk 0:01:39]}  Ne7 {[%clk 0:01:00]} 27. Nb3 {[%clk 0:01:37]}  Bc7 {[%clk 0:00:12]} 28. Nc5 {[%clk 0:01:36]} 1-0


[Site "https://www.chess.com"]

[Event "Titled Tuesday Blitz November 14 Early 2023"]
[White "CrazyAdvenTures"]
[Black "GatoRojo150"]
[WhiteElo "2815"]
[BlackElo "2638"]
[Result "0-1"]
[Round "7"]
[TimeControl "180+1"]
[Date "2023.11.14"]
[WhiteClock "0:00:00"]
[BlackClock "0:01:00"]
[Board "43"]

1. e4 {[%clk 0:02:57]}  e5 {[%clk 0:03:00]} 2. Nf3 {[%clk 0:02:56]}  Nc6 {[%clk 0:03:00]} 3. Bc4 {[%clk 0:02:53]}  Nf6 {[%clk 0:03:00]} 4. d3 {[%clk 0:02:53]}  Be7 {[%clk 0:02:59]} 5. O-O {[%clk 0:02:52]}  O-O {[%clk 0:02:59]} 6. a4 {[%clk 0:02:43]}  d6 {[%clk 0:02:57]} 7. h3 {[%clk 0:02:43]}  h6 {[%clk 0:02:55]} 8. c3 {[%clk 0:02:40]}  Kh8 {[%clk 0:02:47]} 9. Re1 {[%clk 0:02:37]}  Nh7 {[%clk 0:02:47]} 10. d4 {[%clk 0:02:35]}  f5 {[%clk 0:02:42]} 11. exf5 {[%clk 0:02:30]}  d5 {[%clk 0:02:38]} 12. Bb5 {[%clk 0:02:18]}  e4 {[%clk 0:02:36]} 13. Nfd2 {[%clk 0:02:07]}  Bxf5 {[%clk 0:02:35]} 14. Nf1 {[%clk 0:02:07]}  Bd6 {[%clk 0:02:34]} 15. Ne3 {[%clk 0:02:00]}  Qh4 {[%clk 0:02:30]} 16. Nxf5 {[%clk 0:01:39]}  Rxf5 {[%clk 0:02:31]} 17. Be3 {[%clk 0:01:39]}  Raf8 {[%clk 0:02:11]} 18. Qg4 {[%clk 0:01:21]}  Qf6 {[%clk 0:02:02]} 19. Nd2 {[%clk 0:01:10]}  h5 {[%clk 0:01:19]} 20. Qe2 {[%clk 0:01:04]}  Qh4 {[%clk 0:01:14]} 21. c4 {[%clk 0:00:45]}  Ng5 {[%clk 0:01:08]} 22. cxd5 {[%clk 0:00:19]}  Nxh3+ {[%clk 0:01:05]} 23. gxh3 {[%clk 0:00:18]}  Qxh3 {[%clk 0:01:06]} 24. f4 {[%clk 0:00:09]}  exf3 {[%clk 0:01:02]} 25. Qf2 {[%clk 0:00:00]}  Bg3 {[%clk 0:01:00]} 0-1


[Site "https://www.chess.com"]

[Event "Titled Tuesday Blitz November 14 Early 2023"]
[White "Fromm, Marius"]
[Black "Vignesh N R"]
[WhiteFideId "12993190"]
[BlackFideId "25012215"]
[WhiteElo "2638"]
[BlackElo "2810"]
[Result "1/2-1/2"]
[Round "7"]
[TimeControl "180+1"]
[Date "2023.11.14"]
[WhiteClock "0:00:05"]
[BlackClock "0:00:27"]
[Board "44"]

1. e4 {[%clk 0:03:00]}  e5 {[%clk 0:02:53]} 2. Nf3 {[%clk 0:03:01]}  Nc6 {[%clk 0:02:53]} 3. Bc4 {[%clk 0:03:00]}  Nf6 {[%clk 0:02:52]} 4. d3 {[%clk 0:03:01]}  Bc5 {[%clk 0:02:52]} 5. O-O {[%clk 0:03:01]}  O-O {[%clk 0:02:52]} 6. h3 {[%clk 0:03:01]}  a5 {[%clk 0:02:50]} 7. Nc3 {[%clk 0:02:56]}  h6 {[%clk 0:02:46]} 8. Be3 {[%clk 0:02:53]}  d6 {[%clk 0:02:46]} 9. Bxc5 {[%clk 0:02:52]}  dxc5 {[%clk 0:02:45]} 10. a4 {[%clk 0:02:38]}  Re8 {[%clk 0:02:42]} 11. Re1 {[%clk 0:02:37]}  Be6 {[%clk 0:02:42]} 12. Bb5 {[%clk 0:02:37]}  Bd7 {[%clk 0:02:42]} 13. Nd5 {[%clk 0:02:30]}  Nxd5 {[%clk 0:02:32]} 14. exd5 {[%clk 0:02:30]}  Nd4 {[%clk 0:02:26]} 15. Bxd7 {[%clk 0:02:08]}  Qxd7 {[%clk 0:02:24]} 16. c4 {[%clk 0:02:04]}  Qf5 {[%clk 0:02:17]} 17. Nxd4 {[%clk 0:02:01]}  exd4 {[%clk 0:02:17]} 18. Qb3 {[%clk 0:01:50]}  b6 {[%clk 0:02:12]} 19. Qc2 {[%clk 0:01:46]}  Re5 {[%clk 0:02:09]} 20. Qd2 {[%clk 0:01:42]}  Rae8 {[%clk 0:02:08]} 21. Rxe5 {[%clk 0:01:41]}  Rxe5 {[%clk 0:02:05]} 22. Rd1 {[%clk 0:01:28]}  h5 {[%clk 0:02:00]} 23. Kf1 {[%clk 0:01:24]}  Re3 {[%clk 0:01:55]} 24. Kg1 {[%clk 0:01:20]}  Re8 {[%clk 0:01:53]} 25. Kf1 {[%clk 0:01:19]}  g6 {[%clk 0:01:45]} 26. b3 {[%clk 0:01:07]}  Re3 {[%clk 0:01:40]} 27. Kg1 {[%clk 0:01:06]}  Re5 {[%clk 0:01:21]} 28. Kf1 {[%clk 0:01:06]}  Kg7 {[%clk 0:01:21]} 29. Kg1 {[%clk 0:01:04]}  Re7 {[%clk 0:01:16]} 30. Kf1 {[%clk 0:01:04]}  Kf6 {[%clk 0:01:13]} 31. Kg1 {[%clk 0:01:02]}  Qe5 {[%clk 0:01:13]} 32. g3 {[%clk 0:00:57]}  Qe2 {[%clk 0:01:10]} 33. Qf4+ {[%clk 0:00:41]}  Kg7 {[%clk 0:01:10]} 34. Rd2 {[%clk 0:00:18]}  Qe1+ {[%clk 0:01:10]} 35. Kg2 {[%clk 0:00:19]}  Re5 {[%clk 0:01:10]} 36. g4 {[%clk 0:00:14]}  hxg4 {[%clk 0:01:06]} 37. hxg4 {[%clk 0:00:15]}  g5 {[%clk 0:01:04]} 38. Qg3 {[%clk 0:00:14]}  f6 {[%clk 0:01:04]} 39. Ra2 {[%clk 0:00:11]}  Qd1 {[%clk 0:01:03]} 40. Qf3 {[%clk 0:00:02]}  Qxb3 {[%clk 0:00:59]} 41. Re2 {[%clk 0:00:03]}  Rxe2 {[%clk 0:00:37]} 42. Qxe2 {[%clk 0:00:04]}  Kf8 {[%clk 0:00:35]} 43. Qf3 {[%clk 0:00:03]}  Kf7 {[%clk 0:00:34]} 44. Qf5 {[%clk 0:00:02]}  Qxa4 {[%clk 0:00:32]} 45. Qe6+ {[%clk 0:00:02]}  Kg7 {[%clk 0:00:31]} 46. Qe7+ {[%clk 0:00:02]}  Kg6 {[%clk 0:00:31]} 47. Qxc7 {[%clk 0:00:03]}  Qe8 {[%clk 0:00:28]} 48. d6 {[%clk 0:00:03]}  Qe6 {[%clk 0:00:28]} 49. d7 {[%clk 0:00:03]}  Qxg4+ {[%clk 0:00:28]} 50. Kf1 {[%clk 0:00:02]}  Qd1+ {[%clk 0:00:26]} 51. Kg2 {[%clk 0:00:03]}  Qg4+ {[%clk 0:00:27]} 52. Kf1 {[%clk 0:00:04]}  Qd1+ {[%clk 0:00:27]} 53. Kg2 {[%clk 0:00:05]}  Qg4+ {[%clk 0:00:27]} 1/2-1/2


[Site "https://www.chess.com"]

[Event "Titled Tuesday Blitz November 14 Early 2023"]
[White "Tatarinov, Dmitry"]
[Black "Ahmad, Khagan"]
[WhiteFideId "24160067"]
[BlackFideId "13431552"]
[WhiteElo "2807"]
[BlackElo "2608"]
[Result "0-1"]
[Round "7"]
[TimeControl "180+1"]
[Date "2023.11.14"]
[WhiteClock "0:01:04"]
[BlackClock "0:00:31"]
[Board "47"]

1. d4 {[%clk 0:02:47]}  Nf6 {[%clk 0:02:57]} 2. c4 {[%clk 0:02:45]}  e6 {[%clk 0:02:57]} 3. Nf3 {[%clk 0:02:45]}  d5 {[%clk 0:02:45]} 4. g3 {[%clk 0:02:45]}  Be7 {[%clk 0:02:44]} 5. Bg2 {[%clk 0:02:46]}  O-O {[%clk 0:02:45]} 6. O-O {[%clk 0:02:46]}  dxc4 {[%clk 0:02:46]} 7. Qc2 {[%clk 0:02:47]}  a6 {[%clk 0:02:46]} 8. a4 {[%clk 0:02:47]}  Bd7 {[%clk 0:02:46]} 9. Qxc4 {[%clk 0:02:44]}  Bc6 {[%clk 0:02:46]} 10. Bg5 {[%clk 0:02:41]}  a5 {[%clk 0:02:44]} 11. Qc2 {[%clk 0:02:41]}  Na6 {[%clk 0:02:40]} 12. Nc3 {[%clk 0:02:39]}  Nb4 {[%clk 0:02:40]} 13. Qc1 {[%clk 0:02:38]}  h6 {[%clk 0:02:16]} 14. Bxf6 {[%clk 0:02:36]}  Bxf6 {[%clk 0:02:17]} 15. Rd1 {[%clk 0:02:37]}  Bxf3 {[%clk 0:02:12]} 16. Bxf3 {[%clk 0:02:37]}  c6 {[%clk 0:02:12]} 17. e3 {[%clk 0:02:37]}  Qb6 {[%clk 0:02:07]} 18. h4 {[%clk 0:02:37]}  Rac8 {[%clk 0:01:55]} 19. h5 {[%clk 0:02:37]}  c5 {[%clk 0:01:54]} 20. d5 {[%clk 0:02:37]}  c4 {[%clk 0:01:24]} 21. dxe6 {[%clk 0:02:29]}  fxe6 {[%clk 0:01:25]} 22. Be4 {[%clk 0:02:13]}  Rcd8 {[%clk 0:01:24]} 23. Kg2 {[%clk 0:02:11]}  Nd3 {[%clk 0:01:22]} 24. Bxd3 {[%clk 0:02:04]}  cxd3 {[%clk 0:01:23]} 25. Ne4 {[%clk 0:01:57]}  Bxb2 {[%clk 0:01:05]} 26. Rb1 {[%clk 0:01:56]}  Qb4 {[%clk 0:01:05]} 27. Qxb2 {[%clk 0:01:27]}  Qxe4+ {[%clk 0:01:04]} 28. Kg1 {[%clk 0:01:27]}  Rd5 {[%clk 0:01:02]} 29. Qxb7 {[%clk 0:01:13]}  Rxf2 {[%clk 0:00:36]} 30. Kxf2 {[%clk 0:01:12]}  Rf5+ {[%clk 0:00:36]} 31. Kg1 {[%clk 0:01:12]}  Qxe3+ {[%clk 0:00:37]} 32. Kg2 {[%clk 0:01:11]}  Qe2+ {[%clk 0:00:32]} 33. Kg1 {[%clk 0:01:04]}  Qf2+ {[%clk 0:00:31]} 0-1


[Site "https://www.chess.com"]

[Event "Titled Tuesday Blitz November 14 Early 2023"]
[White "Fier, Alexandr"]
[Black "Aaditya Dhingra"]
[WhiteFideId "2107139"]
[BlackFideId "25678191"]
[WhiteElo "2805"]
[BlackElo "2607"]
[Result "0-1"]
[Round "7"]
[TimeControl "180+1"]
[Date "2023.11.14"]
[WhiteClock "0:02:04"]
[BlackClock "0:00:16"]
[Board "48"]

1. Nf3 {[%clk 0:03:00]}  Nf6 {[%clk 0:02:57]} 2. g3 {[%clk 0:03:01]}  b5 {[%clk 0:02:57]} 3. Bg2 {[%clk 0:03:02]}  Bb7 {[%clk 0:02:57]} 4. O-O {[%clk 0:03:03]}  c5 {[%clk 0:02:55]} 5. a4 {[%clk 0:03:03]}  a6 {[%clk 0:02:55]} 6. d3 {[%clk 0:03:03]}  e6 {[%clk 0:02:55]} 7. e4 {[%clk 0:03:03]}  d6 {[%clk 0:02:54]} 8. Nc3 {[%clk 0:03:03]}  b4 {[%clk 0:02:53]} 9. Ne2 {[%clk 0:03:02]}  Nbd7 {[%clk 0:02:52]} 10. Nd2 {[%clk 0:03:03]}  Qc7 {[%clk 0:02:50]} 11. f4 {[%clk 0:03:03]}  Be7 {[%clk 0:02:49]} 12. b3 {[%clk 0:03:03]}  O-O {[%clk 0:02:49]} 13. Bb2 {[%clk 0:03:04]}  Rfe8 {[%clk 0:02:48]} 14. h3 {[%clk 0:03:02]}  Nb8 {[%clk 0:02:27]} 15. g4 {[%clk 0:03:02]}  Nc6 {[%clk 0:02:24]} 16. g5 {[%clk 0:03:02]}  Nd7 {[%clk 0:02:24]} 17. Ng3 {[%clk 0:03:03]}  Nd4 {[%clk 0:02:22]} 18. Nf3 {[%clk 0:03:02]}  Qb6 {[%clk 0:02:14]} 19. Kh1 {[%clk 0:02:58]}  d5 {[%clk 0:02:08]} 20. e5 {[%clk 0:02:55]}  Nxf3 {[%clk 0:02:02]} 21. Qxf3 {[%clk 0:02:55]}  g6 {[%clk 0:01:59]} 22. h4 {[%clk 0:02:55]}  Bf8 {[%clk 0:01:54]} 23. h5 {[%clk 0:02:55]}  Rab8 {[%clk 0:01:50]} 24. Qg4 {[%clk 0:02:53]}  Bg7 {[%clk 0:01:49]} 25. Rae1 {[%clk 0:02:49]}  a5 {[%clk 0:01:46]} 26. Kh2 {[%clk 0:02:48]}  Qc7 {[%clk 0:01:45]} 27. Rh1 {[%clk 0:02:39]}  Rbd8 {[%clk 0:01:34]} 28. Re2 {[%clk 0:02:35]}  c4 {[%clk 0:01:28]} 29. d4 {[%clk 0:02:36]}  Nb6 {[%clk 0:01:25]} 30. Kg1 {[%clk 0:02:34]}  Ba6 {[%clk 0:01:24]} 31. Rf2 {[%clk 0:02:34]}  Rc8 {[%clk 0:01:19]} 32. Qh4 {[%clk 0:02:32]}  Bf8 {[%clk 0:01:08]} 33. Bf1 {[%clk 0:02:30]}  Ra8 {[%clk 0:01:06]} 34. Rfh2 {[%clk 0:02:30]}  Re7 {[%clk 0:01:04]} 35. Bh3 {[%clk 0:02:24]}  cxb3 {[%clk 0:01:02]} 36. cxb3 {[%clk 0:02:24]}  Bd3 {[%clk 0:01:01]} 37. Rd2 {[%clk 0:02:20]}  Bb1 {[%clk 0:00:58]} 38. Kg2 {[%clk 0:02:17]}  Be4+ {[%clk 0:00:54]} 39. Nxe4 {[%clk 0:02:17]}  dxe4 {[%clk 0:00:55]} 40. Kg3 {[%clk 0:02:15]}  e3 {[%clk 0:00:53]} 41. Rdh2 {[%clk 0:02:14]}  Nd5 {[%clk 0:00:41]} 42. Bg2 {[%clk 0:02:15]}  Rd8 {[%clk 0:00:36]} 43. Be4 {[%clk 0:02:14]}  e2 {[%clk 0:00:23]} 44. Rxe2 {[%clk 0:02:10]}  Nc3 {[%clk 0:00:23]} 45. Bxc3 {[%clk 0:02:11]}  Qxc3+ {[%clk 0:00:22]} 46. Kg4 {[%clk 0:02:10]}  Qxd4 {[%clk 0:00:19]} 47. hxg6 {[%clk 0:02:08]}  fxg6 {[%clk 0:00:19]} 48. Bxg6 {[%clk 0:02:09]}  Rdd7 {[%clk 0:00:19]} 49. Be4 {[%clk 0:02:07]}  Qc3 {[%clk 0:00:19]} 50. g6 {[%clk 0:02:07]}  Rg7 {[%clk 0:00:18]} 51. Qf6 {[%clk 0:02:07]}  Qxb3 {[%clk 0:00:16]} 52. Kh4 {[%clk 0:02:05]}  Be7 {[%clk 0:00:15]} 53. gxh7+ {[%clk 0:02:04]}  Kh8 {[%clk 0:00:15]} 54. Kh5 {[%clk 0:02:04]}  Bxf6 {[%clk 0:00:15]} 55. exf6 {[%clk 0:02:05]}  Rxh7+ {[%clk 0:00:15]} 56. Bxh7 {[%clk 0:02:04]}  Rxh7+ {[%clk 0:00:16]} 57. Kg6 {[%clk 0:02:05]}  Qd3+ {[%clk 0:00:16]} 58. Kg5 {[%clk 0:02:04]}  Qf5# {[%clk 0:00:16]} 0-1


[Site "https://www.chess.com"]

[Event "Titled Tuesday Blitz November 14 Early 2023"]
[White "Alen_Yeremyann"]
[Black "Ambartsumova, Karina"]
[BlackFideId "4166299"]
[WhiteElo "2790"]
[BlackElo "2587"]
[Result "0-1"]
[Round "7"]
[TimeControl "180+1"]
[Date "2023.11.14"]
[WhiteClock "0:01:05"]
[BlackClock "0:00:18"]
[Board "51"]

1. e4 {[%clk 0:03:00]}  e5 {[%clk 0:02:59]} 2. Nf3 {[%clk 0:03:00]}  Nc6 {[%clk 0:02:59]} 3. Nc3 {[%clk 0:03:01]}  Nf6 {[%clk 0:02:58]} 4. d4 {[%clk 0:03:02]}  exd4 {[%clk 0:02:58]} 5. Nxd4 {[%clk 0:03:03]}  Bb4 {[%clk 0:02:59]} 6. Nxc6 {[%clk 0:03:03]}  bxc6 {[%clk 0:02:59]} 7. Be2 {[%clk 0:03:04]}  d5 {[%clk 0:02:59]} 8. exd5 {[%clk 0:03:03]}  cxd5 {[%clk 0:03:00]} 9. O-O {[%clk 0:03:04]}  O-O {[%clk 0:03:00]} 10. a3 {[%clk 0:03:03]}  Be7 {[%clk 0:02:57]} 11. Bd3 {[%clk 0:03:02]}  c5 {[%clk 0:02:45]} 12. h3 {[%clk 0:02:57]}  Bb7 {[%clk 0:02:34]} 13. Bg5 {[%clk 0:02:56]}  h6 {[%clk 0:02:29]} 14. Bf4 {[%clk 0:02:53]}  d4 {[%clk 0:02:25]} 15. Nb1 {[%clk 0:02:48]}  Qd5 {[%clk 0:02:21]} 16. f3 {[%clk 0:02:49]}  c4 {[%clk 0:02:15]} 17. Be2 {[%clk 0:02:49]}  Rad8 {[%clk 0:02:15]} 18. Re1 {[%clk 0:02:49]}  Bc5 {[%clk 0:02:10]} 19. Kh1 {[%clk 0:02:48]}  Qf5 {[%clk 0:01:54]} 20. Bh2 {[%clk 0:02:45]}  Nd5 {[%clk 0:01:44]} 21. Bxc4 {[%clk 0:02:35]}  Ne3 {[%clk 0:01:44]} 22. Bd3 {[%clk 0:02:33]}  Nxd1 {[%clk 0:01:08]} 23. Bxf5 {[%clk 0:02:33]}  Nf2+ {[%clk 0:01:08]} 24. Kg1 {[%clk 0:02:33]}  d3 {[%clk 0:01:09]} 25. Nc3 {[%clk 0:01:47]}  d2 {[%clk 0:01:03]} 26. Rf1 {[%clk 0:01:47]}  d1=Q {[%clk 0:00:53]} 27. Nxd1 {[%clk 0:01:47]}  Nxd1+ {[%clk 0:00:54]} 28. Kh1 {[%clk 0:01:48]}  Ne3 {[%clk 0:00:54]} 29. Bd3 {[%clk 0:01:46]}  Nxf1 {[%clk 0:00:46]} 30. Rxf1 {[%clk 0:01:47]}  Rfe8 {[%clk 0:00:42]} 31. Bf4 {[%clk 0:01:44]}  Re7 {[%clk 0:00:40]} 32. b4 {[%clk 0:01:44]}  Bd4 {[%clk 0:00:39]} 33. a4 {[%clk 0:01:44]}  Bc3 {[%clk 0:00:39]} 34. b5 {[%clk 0:01:44]}  Re1 {[%clk 0:00:39]} 35. Rxe1 {[%clk 0:01:44]}  Bxe1 {[%clk 0:00:39]} 36. Kg1 {[%clk 0:01:45]}  Bc3 {[%clk 0:00:39]} 37. Kf1 {[%clk 0:01:46]}  Re8 {[%clk 0:00:38]} 38. Bg3 {[%clk 0:01:45]}  Bd5 {[%clk 0:00:35]} 39. Bf2 {[%clk 0:01:46]}  Re7 {[%clk 0:00:34]} 40. Bc5 {[%clk 0:01:44]}  Rc7 {[%clk 0:00:34]} 41. Bd6 {[%clk 0:01:43]}  Rd7 {[%clk 0:00:34]} 42. Bc5 {[%clk 0:01:44]}  Ba5 {[%clk 0:00:34]} 43. c4 {[%clk 0:01:41]}  Be6 {[%clk 0:00:23]} 44. Ke2 {[%clk 0:01:38]}  Bb6 {[%clk 0:00:20]} 45. Bb4 {[%clk 0:01:36]}  Rc7 {[%clk 0:00:20]} 46. a5 {[%clk 0:01:34]}  Bc5 {[%clk 0:00:20]} 47. Bd2 {[%clk 0:01:30]}  Bd4 {[%clk 0:00:20]} 48. Bf4 {[%clk 0:01:13]}  Rxc4 {[%clk 0:00:19]} 49. b6 {[%clk 0:01:08]}  axb6 {[%clk 0:00:18]} 50. axb6 {[%clk 0:01:07]}  Rb4 {[%clk 0:00:18]} 51. b7 {[%clk 0:01:05]}  Rxb7 {[%clk 0:00:18]} 0-1


[Site "https://www.chess.com"]

[Event "Titled Tuesday Blitz November 14 Early 2023"]
[White "Llorente Zaro, Alfonso"]
[Black "Ben Artzi, Ido"]
[WhiteFideId "2254131"]
[BlackFideId "2810913"]
[WhiteElo "2773"]
[BlackElo "2556"]
[Result "1-0"]
[Round "7"]
[TimeControl "180+1"]
[Date "2023.11.14"]
[WhiteClock "0:00:08"]
[BlackClock "0:00:01"]
[Board "53"]

1. e4 {[%clk 0:03:00]}  e5 {[%clk 0:02:58]} 2. Nf3 {[%clk 0:03:00]}  Nc6 {[%clk 0:02:58]} 3. Nc3 {[%clk 0:02:59]}  Nf6 {[%clk 0:02:58]} 4. h3 {[%clk 0:03:00]}  d5 {[%clk 0:02:58]} 5. exd5 {[%clk 0:03:00]}  Nxd5 {[%clk 0:02:59]} 6. Bb5 {[%clk 0:02:59]}  Nxc3 {[%clk 0:02:57]} 7. bxc3 {[%clk 0:03:00]}  Bd6 {[%clk 0:02:58]} 8. d4 {[%clk 0:03:01]}  exd4 {[%clk 0:02:57]} 9. cxd4 {[%clk 0:03:02]}  O-O {[%clk 0:02:57]} 10. O-O {[%clk 0:03:02]}  Qf6 {[%clk 0:02:55]} 11. Be3 {[%clk 0:03:00]}  Bf5 {[%clk 0:02:54]} 12. c4 {[%clk 0:02:59]}  Nb4 {[%clk 0:02:49]} 13. Ne1 {[%clk 0:02:39]}  Qg6 {[%clk 0:02:31]} 14. Kh1 {[%clk 0:02:30]}  Nc2 {[%clk 0:02:23]} 15. Nxc2 {[%clk 0:01:54]}  Bxc2 {[%clk 0:02:21]} 16. Qd2 {[%clk 0:01:48]}  a6 {[%clk 0:02:05]} 17. Bd7 {[%clk 0:01:35]}  Rad8 {[%clk 0:01:57]} 18. Bg4 {[%clk 0:01:31]}  Be4 {[%clk 0:01:36]} 19. Qd1 {[%clk 0:00:53]}  f5 {[%clk 0:01:26]} 20. Bf3 {[%clk 0:00:52]}  f4 {[%clk 0:01:25]} 21. Bd2 {[%clk 0:00:41]}  Bd3 {[%clk 0:01:14]} 22. Qb3 {[%clk 0:00:41]}  Bxf1 {[%clk 0:00:43]} 23. c5+ {[%clk 0:00:41]}  Kh8 {[%clk 0:00:28]} 24. cxd6 {[%clk 0:00:41]}  Bb5 {[%clk 0:00:23]} 25. dxc7 {[%clk 0:00:34]}  Rxd4 {[%clk 0:00:12]} 26. Rc1 {[%clk 0:00:24]}  Rc8 {[%clk 0:00:09]} 27. Bxb7 {[%clk 0:00:20]}  f3 {[%clk 0:00:02]} 28. Qxf3 {[%clk 0:00:15]}  Rd3 {[%clk 0:00:02]} 29. Be3 {[%clk 0:00:10]}  Rxc7 {[%clk 0:00:01]} 30. Qf8# {[%clk 0:00:08]} 1-0


[Site "https://www.chess.com"]

[Event "Titled Tuesday Blitz November 14 Early 2023"]
[White "Javakhadze, Zurab"]
[Black "Toktomushev, Teimur"]
[WhiteFideId "13603647"]
[BlackFideId "14176726"]
[WhiteElo "2764"]
[BlackElo "2534"]
[Result "1-0"]
[Round "7"]
[TimeControl "180+1"]
[Date "2023.11.14"]
[WhiteClock "0:00:38"]
[BlackClock "0:00:00"]
[Board "55"]

1. Nf3 {[%clk 0:03:00]}  d5 {[%clk 0:02:54]} 2. g3 {[%clk 0:02:55]}  Nf6 {[%clk 0:02:54]} 3. Bg2 {[%clk 0:02:55]}  e6 {[%clk 0:02:54]} 4. O-O {[%clk 0:02:55]}  Be7 {[%clk 0:02:55]} 5. c4 {[%clk 0:02:55]}  O-O {[%clk 0:02:56]} 6. b3 {[%clk 0:02:54]}  b6 {[%clk 0:02:55]} 7. Bb2 {[%clk 0:02:54]}  Bb7 {[%clk 0:02:55]} 8. e3 {[%clk 0:02:54]}  c5 {[%clk 0:02:54]} 9. Nc3 {[%clk 0:02:54]}  dxc4 {[%clk 0:02:53]} 10. bxc4 {[%clk 0:02:54]}  Nc6 {[%clk 0:02:54]} 11. Qe2 {[%clk 0:02:55]}  Qc7 {[%clk 0:02:49]} 12. Rad1 {[%clk 0:02:55]}  Rfd8 {[%clk 0:02:40]} 13. Ne1 {[%clk 0:02:54]}  a6 {[%clk 0:02:40]} 14. f4 {[%clk 0:02:53]}  Na7 {[%clk 0:02:37]} 15. g4 {[%clk 0:02:50]}  b5 {[%clk 0:02:00]} 16. g5 {[%clk 0:02:49]}  Ne8 {[%clk 0:02:00]} 17. f5 {[%clk 0:02:45]}  exf5 {[%clk 0:01:04]} 18. Rxf5 {[%clk 0:02:40]}  Nd6 {[%clk 0:01:01]} 19. Nd5 {[%clk 0:02:21]}  Bxd5 {[%clk 0:01:01]} 20. Rxd5 {[%clk 0:02:20]}  Nxc4 {[%clk 0:01:00]} 21. Bc3 {[%clk 0:02:05]}  Rxd5 {[%clk 0:00:53]} 22. Bxd5 {[%clk 0:02:05]}  Rd8 {[%clk 0:00:54]} 23. Bxc4 {[%clk 0:01:56]}  bxc4 {[%clk 0:00:55]} 24. Nf3 {[%clk 0:01:57]}  Nb5 {[%clk 0:00:47]} 25. Qxc4 {[%clk 0:01:52]}  Nxc3 {[%clk 0:00:31]} 26. Qxc3 {[%clk 0:01:51]}  Qc6 {[%clk 0:00:30]} 27. Rf1 {[%clk 0:01:47]}  Qd5 {[%clk 0:00:23]} 28. h4 {[%clk 0:01:43]}  Bd6 {[%clk 0:00:13]} 29. Kf2 {[%clk 0:01:18]}  Qxa2 {[%clk 0:00:03]} 30. Ra1 {[%clk 0:01:13]}  Qd5 {[%clk 0:00:02]} 31. Rxa6 {[%clk 0:01:12]}  Bf8 {[%clk 0:00:02]} 32. Ra7 {[%clk 0:01:03]}  Qf5 {[%clk 0:00:02]} 33. Ra4 {[%clk 0:00:44]}  h6 {[%clk 0:00:02]} 34. Rf4 {[%clk 0:00:44]}  Qe6 {[%clk 0:00:02]} 35. gxh6 {[%clk 0:00:42]}  Qxh6 {[%clk 0:00:02]} 36. Ng5 {[%clk 0:00:39]}  f6 {[%clk 0:00:00]} 37. Qc4+ {[%clk 0:00:38]} 1-0


[Site "https://www.chess.com"]